Cogmind - Beta 15 @@@ ROGUE MODE // 2025.10.10 @ 19:16:04 Player: AussieBBQ Result: Escaped! Performance ------------- Evolutions (9) 4500 Regions Visited (15) 3000 Robots Destroyed (69) 345 Value Destroyed (1184) 1184 Prototype IDs (37) 740 Alien Tech Used (0) 0 Bonus (5210) 5210 TOTAL SCORE: 14979 Bonus ------- Aligned with FarCom 300 Met Data Miner 300 Win 3000 Win Speed 1659 Friendly Fire -49 Cogmind --------- Core Integrity 1519/1600 Matter 243/300 Energy 278/280 System Corruption 3% Temperature Cool (5) Movement Flying (30) Location To Epsilon Eridani Parts ------- > --- POWER (2) -------- Light Quantum Reactor Light Quantum Reactor > --- PROPULSION (10) -- Field Propulsion Array Field Propulsion Array Q-thruster Impulse Thruster Array Impulse Thruster Array > --- UTILITY (11) ----- Improved Heat Sink Advanced Coolant Injector Advanced ECM Suite Hardened Light Armor Plating Layered Light Armor Plating Graphene Brace Hacking Suite Hacking Suite Hacking Suite Improved Hacking Suite System Shield > --- WEAPON (2) ------- Chainsword > --- INVENTORY (5) ---- Micro Antimatter Reactor Light Quantum Reactor Precision Grenade Launcher Peak State ------------ > --- POWER ------------ Light Quantum Reactor Light Quantum Reactor > --- PROPULSION ------- Field Propulsion Array Field Propulsion Array Q-thruster Q-thruster Impulse Thruster Array Impulse Thruster Array > --- UTILITY ---------- Improved Heat Sink Advanced Coolant Injector Advanced ECM Suite Cloak of Protection Improved Propulsion Shielding Hardened Light Armor Plating Hacking Suite Hacking Suite Hacking Suite Improved Hacking Suite System Shield > --- WEAPON ----------- Chainsword > --- INVENTORY -------- Light Antimatter Reactor Micro Antimatter Reactor Graphene Brace Hacking Suite Precision Grenade Launcher [Rating: 145] Favorites ----------- Power Light Quantum Reactor Engine Ion Engine Power Core Light Nuclear Core Reactor Light Quantum Reactor Propulsion Light Treads Treads Light Treads Leg Aluminum Leg Flight Unit Improved VTOL Module Utility Hacking Suite Device Improved Heat Sink Storage Large Storage Unit Hackware Hacking Suite Protection Light Armor Plating Weapon Assault Rifle Energy Gun Small Laser Ballistic Gun Assault Rifle Launcher Precision Grenade Launcher Special Weapon Remote Datajack Slashing Weapon Chainsword Piercing Weapon Spear Build | -11 -10 -10 -10 -9 -8 -7 -7 -7 -6 -6 -5 -4 -3 -2 -1 ------- Run | Yrd Mat Min Exi Min Mat Fac Low Dat Pro Fac Fac Fac Res Res Acc Slots Evolved 18 | . . . . . 4 2 . . . 2 2 2 2 2 2 Power 1 | . . . . . . . . . . . 1 . . . . Propulsion 8 | . . . . . 1 2 . . . 1 1 . . 1 2 Utility 9 | . . . . . 3 . . . . 1 . 2 2 1 . Weapon . | . . . . . . . . . . . . . . . . Parts Attached 74 | 8 1 . . 1 24 10 . . 3 3 1 6 9 4 4 Power 13 | 1 . . . . 2 2 . . 2 . . 1 2 3 . Engine 5 | 1 . . . . 1 . . . 1 . . 1 1 . . Core 4 | . . . . . 1 2 . . 1 . . . . . . Reactor 4 | . . . . . . . . . . . . . 1 3 . Propulsion 22 | 2 . . . . 8 1 . . 1 . . 3 5 1 1 Treads 6 | 2 . . . . 4 . . . . . . . . . . Leg 1 | . . . . . 1 . . . . . . . . . . Wheel . | . . . . . . . . . . . . . . . . Hover . | . . . . . . . . . . . . . . . . Flight 15 | . . . . . 3 1 . . 1 . . 3 5 1 1 Utility 26 | 2 1 . . . 8 5 . . . 3 1 1 2 . 3 Device 11 | 1 . . . . 4 3 . . . . . 1 1 . 1 Storage 2 | 1 1 . . . . . . . . . . . . . . Processor . | . . . . . . . . . . . . . . . . Hackware 7 | . . . . . 1 1 . . . 2 1 . 1 . 1 Protection 6 | . . . . . 3 1 . . . 1 . . . . 1 Artifact . | . . . . . . . . . . . . . . . . Weapon 13 | 3 . . . 1 6 2 . . . . . 1 . . . Energy Gun 1 | 1 . . . . . . . . . . . . . . . Energy Cannon . | . . . . . . . . . . . . . . . . Ballistic Gun 5 | 2 . . . . 3 . . . . . . . . . . Ballistic Cannon . | . . . . . . . . . . . . . . . . Launcher 2 | . . . . 1 1 . . . . . . . . . . Special Weapon 1 | . . . . . 1 . . . . . . . . . . Impact Weapon . | . . . . . . . . . . . . . . . . Slashing Weapon 3 | . . . . . 1 1 . . . . . 1 . . . Piercing Weapon 1 | . . . . . . 1 . . . . . . . . . Special Melee Weapon . | . . . . . . . . . . . . . . . . Unidentified Prototypes 4 | . . . . . 2 2 . . . . . . . . . Parts Lost 11 | . . . . . 2 1 . . 3 . . 1 . . 4 Power 1 | . . . . . . . . . 1 . . . . . . Propulsion 3 | . . . . . . . . . 1 . . 1 . . 1 Utility 6 | . . . . . 2 . . . 1 . . . . . 3 Weapon 1 | . . . . . . 1 . . . . . . . . . Highest Loss Streak 3 | . . . . . 1 1 . . 3 . . 1 . . 3 To Critical Strikes . | . . . . . . . . . . . . . . . . Average Backups 7 | 3 7 8 8 11 14 4 5 5 4 4 5 4 4 4 3 Power . | . 1 1 1 1 1 1 1 1 . . . . . . 1 Propulsion 2 | 2 4 4 4 5 6 1 1 1 1 1 1 1 1 1 . Utility 1 | . . 1 1 2 3 1 2 2 2 2 3 2 2 1 . Weapon 1 | . 1 2 2 2 4 1 1 1 1 1 1 1 1 1 1 Tool/Special . | . . . . . . . . . . . . . . . . Unused Backups 10 | . . . . . 5 . . . . . 1 . 1 1 2 Power 2 | . . . . . . . . . . . . . . . 2 Propulsion 6 | . . . . . 4 . . . . . . . 1 1 . Utility 2 | . . . . . 1 . . . . . 1 . . . . Weapon . | . . . . . . . . . . . . . . . . Tool/Special . | . . . . . . . . . . . . . . . . Average Slot Usage (%) 85 | . 100 100 100 100 91 79 76 76 74 73 74 86 82 77 79 Engine 4 | . 14 14 14 14 6 . . . . . 4 5 1 . . Core 2 | . . . . . 2 7 7 7 5 6 5 5 3 . . Reactor 2 | . . . . . . . . . . . . . 3 7 8 Treads 9 | . 28 28 28 28 22 . . . . . . . . . . Flight 15 | . . . . . . 30 30 30 30 26 21 31 23 16 23 Device 11 | . 14 14 14 14 9 10 7 7 7 6 5 8 14 16 14 Storage 4 | . 14 14 14 14 9 . . . . . . . . . . Hackware 13 | . . . . . 6 11 15 15 15 24 24 26 23 21 20 Protection 6 | . . . . . 11 14 7 7 6 1 4 4 6 8 7 Ballistic Gun 8 | . 28 28 28 26 17 . . . . . . . . . . Slashing Weapon 2 | . . . . . . 4 7 7 5 6 5 5 3 4 4 Peak Build Rating 145 | 7 7 7 8 9 30 33 29 29 29 38 41 70 111 129 145 Average Rating 54 | 5 7 7 7 8 20 28 29 29 28 34 40 62 97 127 142 On Entrance 35 | . 7 7 7 8 9 24 29 29 29 28 38 41 69 111 129 Naked Turns . | . . . . . . . . . . . . . . . . Heaviest Build 53 | 15 30 30 30 30 39 17 13 13 15 12 14 28 41 53 53 Greatest Support 78 | 40 40 40 40 40 60 18 14 14 18 14 18 39 54 62 78 Greatest Overweight (x) 1 | 1 . . . . . . . . 1 . . . . . . Average Overweight (x) . | . . . . . . . . . . . . . . . . Largest Inventory Capacity 15 | 8 15 15 15 15 15 5 5 5 5 5 5 5 5 5 5 Average Capacity 8 | 7 12 15 15 15 14 5 5 5 5 5 5 5 5 5 5 Most Carried 15 | 6 8 8 9 13 15 5 5 5 5 5 5 5 5 5 5 Average Carried 7 | 4 7 8 8 11 14 4 5 5 4 4 5 4 4 4 3 Final Capacity 15 | 8 15 15 15 15 5 5 5 5 5 5 5 5 5 5 5 Final Carried 13 | 6 8 8 9 13 5 5 5 5 4 5 5 5 5 5 3 Class Distribution -------------------- 45% | Hacker-Sprinter 28% | Mutant 12% | Scavenger-Mutant 11% | Scavenger-Sprinter Dominant Class ---------------- Mutant | -10/Materials Mutant | -10/Mines Mutant | -10/Exiles Mutant | -9/Mines Scavenger-Mutant | -8/Materials Scavenger-Sprinter | -7/Factory Scavenger-Sprinter | -7/Lower Caves Scavenger-Sprinter | -7/Data Miner Scavenger-Sprinter | -6/Proximity Caves Hacker-Sprinter | -6/Factory Hacker-Sprinter | -5/Factory Hacker-Sprinter | -4/Factory Hacker-Sprinter | -3/Research Hacker-Sprinter | -2/Research Hacker-Sprinter | -1/Access Resources | -11 -10 -10 -10 -9 -8 -7 -7 -7 -6 -6 -5 -4 -3 -2 -1 ----------- Run | Yrd Mat Min Exi Min Mat Fac Low Dat Pro Fac Fac Fac Res Res Acc Matter Collected 1814 | 229 103 . . 36 604 260 . . 149 40 . 116 135 91 51 Remotely . | . . . . . . . . . . . . . . . . Salvage Created 2202 | 12 13 . . 49 1040 304 . . 60 40 11 157 174 111 231 Parts 152 | 2 3 . . 9 57 27 . . 9 6 2 5 7 11 14 Haulers Intercepted 8 | . . . . . 4 3 . . . . . 1 . . . Recyclers Shooed 4 | 1 . . . . 3 . . . . . . . . . . Parts Field Recycled . | . . . . . . . . . . . . . . . . Retrieved Matter . | . . . . . . . . . . . . . . . . Parts Self-Destructed 5 | . . . . . . . . . 5 . . . . . . Prevented . | . . . . . . . . . . . . . . . . Kills | -11 -10 -10 -10 -9 -8 -7 -7 -7 -6 -6 -5 -4 -3 -2 -1 ------- Run | Yrd Mat Min Exi Min Mat Fac Low Dat Pro Fac Fac Fac Res Res Acc Combat Hostiles Destroyed 23 | . . . . 4 12 . . . 7 . . . . . . Melee 1 | . . . . . . . . . 1 . . . . . . Guns 14 | . . . . 2 12 . . . . . . . . . . AOE 8 | . . . . 2 . . . . 6 . . . . . . Classes Destroyed 12 | 1 1 . . 2 8 . . . . . . . . . . Worker 12 | . . . . . 1 5 . . . . . 3 . 3 . Builder 6 | . . . . . 1 1 . . . . . . . 2 2 Tunneler 2 | 1 . . . . 1 . . . . . . . . . . Hauler 8 | . . . . . 4 3 . . . . . 1 . . . Recycler 5 | . . . . . 3 1 . . . . . . 1 . . Operator 7 | . 1 . . . . 1 . . . 2 1 . 1 . 1 Watcher 5 | . . . . . 1 . . . . . . . . . 4 Swarmer 14 | . . . . 4 3 . . . 7 . . . . . . Grunt 4 | . . . . . 4 . . . . . . . . . . Sentry 4 | . . . . . 4 . . . . . . . . . . Hunter 1 | . . . . . 1 . . . . . . . . . . Zionite 1 | . . . . 1 . . . . . . . . . . . Best Kill Streak 5 | 1 1 . . 4 5 4 . . 4 1 1 2 1 2 2 Combat Bots Only 5 | . . . . 4 5 . . . 4 . . . . . . Max Kills in Single Turn 3 | 1 1 . . 3 2 1 . . 3 1 1 1 1 1 1 Gunslinging 1 | . . . . 1 . . . . . . . . . . . Exploded 3 | . . . . 2 . . . . 3 . . . . . . Melee 1 | . . . . . . . . . 1 . . . . . . Uniques/NPCs Destroyed . | . . . . . . . . . . . . . . . . Combat | -11 -10 -10 -10 -9 -8 -7 -7 -7 -6 -6 -5 -4 -3 -2 -1 -------- Run | Yrd Mat Min Exi Min Mat Fac Low Dat Pro Fac Fac Fac Res Res Acc Hostile Shots Fired 198 | . . . . 5 56 4 . . 20 . . 30 . 7 76 Missed 90 | . . . . . 13 2 . . 7 . . 19 . 6 43 Hits 108 | . . . . 5 43 2 . . 13 . . 11 . 1 33 Projectile 108 | . . . . 5 43 2 . . 13 . . 11 . 1 33 AOE 1 | . . . . . . . . . . . . . . . 1 Critical Strikes 3 | . . . . . 2 . . . 1 . . . . . . Damage Taken 1948 | . . . . 83 564 28 . . 258 . . 187 . 30 798 Core 273 | . . . . . 54 28 . . 50 . . 60 . . 81 Absorbed by Shields 6 | . . . . . . . . . . . . 6 . . . Redirected to Shielding 115 | . . . . . . . . . . . . . . 19 96 Regen/Repaired (Parts) 3 | . . . . . . . . . . . 3 . . . . Core Remaining (%) 96 | 100 . . . 100 90 . . . 88 100 100 94 100 100 94 Volleys Fired 79 | 3 4 . . 2 59 . . . 8 . . 1 . . 2 Largest 2 | 2 2 . . 2 2 . . . 1 . . 1 . . 1 Hottest 50 | 40 40 . . 40 50 . . . 36 . . 36 . . 36 Shots Fired 146 | 6 8 . . 3 118 . . . 8 . . 1 . . 2 Gun 134 | 6 8 . . 2 118 . . . . . . . . . . Cannon . | . . . . . . . . . . . . . . . . Launcher 12 | . . . . 1 . . . . 8 . . 1 . . 2 Special . | . . . . . . . . . . . . . . . . Kinetic 134 | 6 8 . . 2 118 . . . . . . . . . . Thermal . | . . . . . . . . . . . . . . . . Explosive 12 | . . . . 1 . . . . 8 . . 1 . . 2 Electromagnetic . | . . . . . . . . . . . . . . . . Robot Hit Streak 17 | 2 2 . . 4 17 . . . . . . . . . . Robot Miss Streak 3 | 1 2 . . . 3 . . . 1 . . . . . . Penetration Max . | . . . . . . . . . . . . . . . . Secondary Targets 2 | . . . . 1 1 . . . . . . . . . . Max Gunslinging Chain 1 | . . . . 1 1 . . . . . . . . . . Shots Hit Robots 154 | 4 4 . . 2 85 17 . . 1 4 2 7 2 9 17 Core Hits 88 | 1 2 . . 5 44 9 . . 11 2 1 2 2 2 7 Critical Kills . | . . . . . . . . . . . . . . . . Critical Parts Destroyed 2 | . . . . . 2 . . . . . . . . . . Critical Strikes 5 | . . . . . 2 . . . . . . . . . 3 Destroy 2 | . . . . . 2 . . . . . . . . . . Sever 3 | . . . . . . . . . . . . . . . 3 Melee Attacks 169 | . . . . . . 24 . . 1 12 11 16 6 44 55 Impact . | . . . . . . . . . . . . . . . . Slashing 169 | . . . . . . 24 . . 1 12 11 16 6 44 55 Piercing . | . . . . . . . . . . . . . . . . Sneak Attacks 27 | . . . . . . 10 . . . . . 6 1 7 3 Combat Hostiles . | . . . . . . . . . . . . . . . . Follow-up Attacks . | . . . . . . . . . . . . . . . . Damage Inflicted 5943 | 48 53 . . 174 1445 1162 . . 512 219 149 515 138 634 894 Guns 1556 | 48 53 . . 25 1430 . . . . . . . . . . Cannons . | . . . . . . . . . . . . . . . . Explosions 626 | . . . . 149 . . . . 477 . . . . . . Melee 3746 | . . . . . . 1162 . . 35 219 149 515 138 634 894 Ramming 15 | . . . . . 15 . . . . . . . . . . Kinetic 1556 | 48 53 . . 25 1430 . . . . . . . . . . Thermal . | . . . . . . . . . . . . . . . . Explosive 626 | . . . . 149 . . . . 477 . . . . . . Electromagnetic . | . . . . . . . . . . . . . . . . Impact . | . . . . . . . . . . . . . . . . Slashing 3746 | . . . . . . 1162 . . 35 219 149 515 138 634 894 Piercing . | . . . . . . . . . . . . . . . . Highest Corruption 3 | . . . . . . . . . . . . 2 . . 3 Average Corruption 2 | . . . . . . . . . . . . 1 . . 2 Corruption Purged . | . . . . . . . . . . . . . . . . Corruption Blocked . | . . . . . . . . . . . . . . . . Effects 4 | . . . . . . . . . . . . 2 . . 2 Message Errors 1 | . . . . . . . . . . . . 1 . . . Matter Fused 2 | . . . . . . . . . . . . 1 . . 1 Energy Discharges 1 | . . . . . . . . . . . . . . . 1 Overload Shots . | . . . . . . . . . . . . . . . . Overflow Damage 775 | . . . . 7 . 189 . . 34 6 38 134 . 201 166 Projectiles . | . . . . . . . . . . . . . . . . Explosions 31 | . . . . 7 . . . . 24 . . . . . . Melee 744 | . . . . . . 189 . . 10 6 38 134 . 201 166 Knockbacks 1 | . . . . . 1 . . . . . . . . . . Impact 1 | . . . . . 1 . . . . . . . . . . Kinetic . | . . . . . . . . . . . . . . . . Secondary . | . . . . . . . . . . . . . . . . Self-Inflicted Damage 112 | . . . . 37 . . . . 75 . . . . . . Shots 3 | . . . . 1 . . . . 2 . . . . . . Rammed 3 | . . . . . 3 . . . . . . . . . . Targets Rammed 3 | . . . . . 3 . . . . . . . . . . Kicked . | . . . . . . . . . . . . . . . . Crushed . | . . . . . . . . . . . . . . . . Highest Temperature 125 | . . . . . 14 . . . . . . 21 125 . 96 Average Temperature 24 | . . . . . 5 . . . . . . 7 62 . 34 Received Heat Transfer 171 | . . . . . 162 . . . . . . . . . 9 Siege Activations . | . . . . . . . . . . . . . . . . Martial Activations . | . . . . . . . . . . . . . . . . Shielding Activations . | . . . . . . . . . . . . . . . . Robots Disrupted . | . . . . . . . . . . . . . . . . Combat Hostiles . | . . . . . . . . . . . . . . . . Robots Corrupted . | . . . . . . . . . . . . . . . . Combat Hostiles . | . . . . . . . . . . . . . . . . Parts Fried . | . . . . . . . . . . . . . . . . Impact Corruptions . | . . . . . . . . . . . . . . . . Robots Melted . | . . . . . . . . . . . . . . . . Combat Hostiles . | . . . . . . . . . . . . . . . . Parts Melted . | . . . . . . . . . . . . . . . . Heat Transferred . | . . . . . . . . . . . . . . . . Parts Sabotaged . | . . . . . . . . . . . . . . . . Parts Stolen . | . . . . . . . . . . . . . . . . Parts Stripped . | . . . . . . . . . . . . . . . . Power Chain Reactions . | . . . . . . . . . . . . . . . . Alert | -11 -10 -10 -10 -9 -8 -7 -7 -7 -6 -6 -5 -4 -3 -2 -1 ------- Run | Yrd Mat Min Exi Min Mat Fac Low Dat Pro Fac Fac Fac Res Res Acc Maximum Alert Level . | . . . . . . . . . . . . . . . . Low Security (%) 100 | 100 100 100 . 100 100 100 . . . 100 100 100 100 100 100 Level 1 . | . . . . . . . . . . . . . . . . Level 2 . | . . . . . . . . . . . . . . . . Level 3 . | . . . . . . . . . . . . . . . . Level 4 . | . . . . . . . . . . . . . . . . Level 5 . | . . . . . . . . . . . . . . . . High Security . | . . . . . . . . . . . . . . . . Max Security . | . . . . . . . . . . . . . . . . Peak Influence 181 | 5 11 . . 95 181 73 . . . 63 21 108 31 26 33 Initial 73 | . . . . . 25 73 . . . 63 9 . 7 11 4 Average 24 | . 1 . . 76 57 46 . . . 11 6 26 9 7 4 Influence Increases 1662 | 5 20 . . 95 439 146 . . 160 88 32 230 76 187 184 Destroy 0b10 Robot/C 460 | . . . . 80 240 . . . 140 . . . . . . Destroy 0b10 Robot/NC 225 | 5 5 . . . 55 55 . . . 10 5 20 10 25 35 Destroy Leader 126 | . . . . 10 80 6 . . 20 . . 2 . . 8 Successful Hack 136 | . 15 . . . 16 21 . . . 13 15 . 32 . 24 Disable Machine 45 | . . . . . 45 . . . . . . . . . . Destroy Structure 265 | . . . . 5 3 4 . . . 5 12 28 4 102 102 Partial Spotted 120 | . . . . . . 15 . . . 30 . 30 15 30 . Lose Combat Pursuer 285 | . . . . . . 45 . . . 30 . 150 15 30 15 Influence Decreases 1650 | 5 20 . . 30 341 302 4 3 60 167 53 215 70 200 180 Entered New Map 208 | . . . . . 40 90 4 3 . 37 12 . 8 10 4 Time Decay 1138 | 5 20 . . 30 277 160 . . 30 82 30 107 62 190 145 Lost Part 66 | . . . . . 10 10 . . 30 . . 10 . . 6 Purge Threat 238 | . . . . . 14 42 . . . 48 11 98 . . 25 Squads Dispatched 27 | . 1 . . . 3 4 . . . 2 1 2 1 7 6 Investigation 4 | . . . . . 1 . . . . . . 1 . 1 1 Extermination 10 | . . . . . . 1 . . . . . 1 1 4 3 Reinforcement 13 | . 1 . . . 2 3 . . . 2 1 . . 2 2 Assault . | . . . . . . . . . . . . . . . . Garrison . | . . . . . . . . . . . . . . . . Intercept . | . . . . . . . . . . . . . . . . Searches Triggered . | . . . . . . . . . . . . . . . . Construction Impeded . | . . . . . . . . . . . . . . . . Haulers Reinforced 2 | . . . . . . 2 . . . . . . . . . Active Scanning Responses . | . . . . . . . . . . . . . . . . Cargo Convoy Interrupts . | . . . . . . . . . . . . . . . . Stealth | -11 -10 -10 -10 -9 -8 -7 -7 -7 -6 -6 -5 -4 -3 -2 -1 --------- Run | Yrd Mat Min Exi Min Mat Fac Low Dat Pro Fac Fac Fac Res Res Acc Distress Signals 10 | . . . . . 2 . . . . . . 3 1 3 1 Communications Jammed . | . . . . . . . . . . . . . . . . Distress Signals . | . . . . . . . . . . . . . . . . Times Spotted 113 | . 3 . . 4 23 6 . . 6 5 1 18 3 12 32 Peak Tracking Total 16 | . 2 . . 4 5 4 . . 3 3 1 10 3 4 16 Tactical Retreats 17 | . . . . . . 3 . . . 1 . 5 1 3 4 Traps | -11 -10 -10 -10 -9 -8 -7 -7 -7 -6 -6 -5 -4 -3 -2 -1 ------- Run | Yrd Mat Min Exi Min Mat Fac Low Dat Pro Fac Fac Fac Res Res Acc Traps Triggered 4 | . . . . . 1 . . . . . . 1 . 1 1 Indirectly . | . . . . . . . . . . . . . . . . Trap Hack Attempts . | . . . . . . . . . . . . . . . . Triggered . | . . . . . . . . . . . . . . . . Disarmed 6 | . . . . . . . . . . 6 . . . . . Reprogrammed . | . . . . . . . . . . . . . . . . Reused . | . . . . . . . . . . . . . . . . Traps Extracted . | . . . . . . . . . . . . . . . . Installed . | . . . . . . . . . . . . . . . . Triggered . | . . . . . . . . . . . . . . . . Machines | -11 -10 -10 -10 -9 -8 -7 -7 -7 -6 -6 -5 -4 -3 -2 -1 ---------- Run | Yrd Mat Min Exi Min Mat Fac Low Dat Pro Fac Fac Fac Res Res Acc Machines Disabled 3 | . . . . . 3 . . . . . . . . . . Max in Single Turn 1 | . . . . . 1 . . . . . . . . . . Garrison Access 4 | . . . . . . 1 . . . . . . 1 . 2 Machines Repaired . | . . . . . . . . . . . . . . . . Machines Dismantled . | . . . . . . . . . . . . . . . . Machines Sabotaged . | . . . . . . . . . . . . . . . . Overloaded Fab Kills . | . . . . . . . . . . . . . . . . Hacking | -11 -10 -10 -10 -9 -8 -7 -7 -7 -6 -6 -5 -4 -3 -2 -1 --------- Run | Yrd Mat Min Exi Min Mat Fac Low Dat Pro Fac Fac Fac Res Res Acc Machines Accessed 48 | . 3 . 2 . 4 8 . 4 . 4 3 4 5 4 7 Terminals 27 | . 2 . . . 3 3 . . . 3 2 2 4 3 5 Fabricators 2 | . . . . . . 1 . . . . . 1 . . . Repair Stations 4 | . . . . . 1 1 . . . 1 1 . . . . Recycling Units 2 | . 1 . . . . 1 . . . . . . . . . Scanalyzers 2 | . . . . . . 1 . . . . . 1 . . . Garrison Access 5 | . . . . . . 1 . . . . . . 1 1 2 Total Hacks 176 | . 8 . 2 . 16 26 . 29 . 32 21 13 9 10 10 Successful 104 | . 6 . 2 . 8 8 . 29 . 15 14 8 5 3 6 Failed 72 | . 2 . . . 8 18 . . . 17 7 5 4 7 4 Catastrophic 5 | . . . . . 1 . . . . 1 2 . . . 1 Database Lockouts . | . . . . . . . . . . . . . . . . Manual 86 | . 7 . 1 . 13 13 . . . 24 12 3 6 5 2 Terminals 112 | . 7 . . . 15 11 . . . 30 16 8 8 9 8 Fabricators 5 | . . . . . . 2 . . . . . 3 . . . Repair Stations 12 | . . . . . 1 4 . . . 2 5 . . . . Recycling Units 4 | . 1 . . . . 3 . . . . . . . . . Scanalyzers 4 | . . . . . . 2 . . . . . 2 . . . Garrison Access 8 | . . . . . . 4 . . . . . . 1 1 2 Terminal Hacks 72 | . 3 . 2 . 6 3 . 29 . 12 9 3 1 1 3 Record 15 | . . . 1 . . 1 . 11 . . 2 . . . . Part Schematic 10 | . . . . . . . . 10 . . . . . . . Robot Schematic 5 | . . . . . . . . 5 . . . . . . . Robot Analysis 4 | . 2 . . . 2 . . . . . . . . . . Prototype ID Bank 3 | . . . . . . . . 3 . . . . . . . Open Door 1 | . . . . . . . . . . . . . . . 1 Level Access Points 3 | . . . . . . . . . . 1 1 . . . 1 Emergency Access Points 1 | . . . . . . . . . . 1 . . . . . Machine Index 1 | . . . . . . . . . . 1 . . . . . Terminal Index 4 | . . . . . . . . . . 1 2 . 1 . . Fabricator Index 1 | . . . . . . . . . . 1 . . . . . Unreport Threat 11 | . . . . . 2 2 . . . 2 2 2 . . 1 Locate Traps 2 | . . . . . 1 . . . . 1 . . . . . Disarm Traps 1 | . . . . . . . . . . 1 . . . . . Dispatch Records 1 | . . . . . . . . . . 1 . . . . . Patrol Status 2 | . . . . . . . . . . 1 1 . . . . Recall Investigation 1 | . . . . . . . . . . . . 1 . . . Recall Reinforcements 1 | . . . . . . . . . . 1 . . . . . Hauler Manifests 1 | . 1 . . . . . . . . . . . . . . Zone Layout 3 | . . . . . 1 . . . . . 1 . . 1 . Proto ID Catalog 1 | . . . 1 . . . . . . . . . . . . Fabricator Hacks 3 | . . . . . . 1 . . . . . 2 . . . Network Status 1 | . . . . . . 1 . . . . . . . . . Load Schematic 1 | . . . . . . . . . . . . 1 . . . Build 1 | . . . . . . . . . . . . 1 . . . Repair Station Hacks 3 | . . . . . . . . . . . 3 . . . . Scan Component 1 | . . . . . . . . . . . 1 . . . . Repair 1 | . . . . . . . . . . . 1 . . . . Refit 1 | . . . . . . . . . . . 1 . . . . Recycling Unit Hacks 1 | . . . . . . 1 . . . . . . . . . Retrieve Components 1 | . . . . . . 1 . . . . . . . . . Scanalyzer 2 | . . . . . . . . . . . . 2 . . . Insert Component 1 | . . . . . . . . . . . . 1 . . . Analyze 1 | . . . . . . . . . . . . 1 . . . Garrison Access Hacks 4 | . . . . . . 1 . . . . . . 1 . 2 Seal Access 4 | . . . . . . 1 . . . . . . 1 . 2 Unauthorized Hacks 19 | . 3 . . . 2 2 . . . 3 2 1 3 2 1 Terminals 18 | . 2 . . . 2 2 . . . 3 2 1 3 2 1 Assimilate 1 | . . . . . . . . . . . . . . 1 . Botnet 17 | . 2 . . . 2 2 . . . 3 2 1 3 1 1 Fabricators . | . . . . . . . . . . . . . . . . Repair Stations . | . . . . . . . . . . . . . . . . Recycling Units 1 | . 1 . . . . . . . . . . . . . . Recyclers 1 | . 1 . . . . . . . . . . . . . . Scanalyzers . | . . . . . . . . . . . . . . . . Garrison Access . | . . . . . . . . . . . . . . . . Data Cores Recovered 3 | . . . . . . . . . . 1 . . 1 . 1 Used 2 | . . . . . . . . . . . . . 1 . 1 Hacking Detections 33 | . 2 . . . 3 6 . . . 3 3 3 4 4 5 Full Trace Events 2 | . . . . . . . . . . . . 1 . 1 . Feedback Events . | . . . . . . . . . . . . . . . . Feedback Blocked . | . . . . . . . . . . . . . . . . Robot Schematics Acquired 5 | . . . . . . . . 5 . . . . . . . Robots Built . | . . . . . . . . . . . . . . . . Authchips . | . . . . . . . . . . . . . . . . Time . | . . . . . . . . . . . . . . . . Total Robot Build Rating . | . . . . . . . . . . . . . . . . Part Schematics Acquired 11 | . . . . . . . . 10 . . . 1 . . . Parts Built 1 | . . . . . . . . . . . . 1 . . . Authchips . | . . . . . . . . . . . . . . . . Time 152 | . . . . . . . . . . . . 152 . . . Total Part Build Rating 5 | . . . . . . . . . . . . 5 . . . Parts Repaired 1 | . . . . . . . . . . . 1 . . . . Time 18 | . . . . . . . . . . . 18 . . . . Parts Recycled . | . . . . . . . . . . . . . . . . Recycled Matter . | . . . . . . . . . . . . . . . . Retrieved Matter . | . . . . . . . . . . . . . . . . Retrieved Components 1 | . . . . . . 1 . . . . . . . . . Parts Scanalyzed 1 | . . . . . . . . . . . . 1 . . . Part Schematics Acquired 1 | . . . . . . . . . . . . 1 . . . Parts Damaged . | . . . . . . . . . . . . . . . . Bothacking | -11 -10 -10 -10 -9 -8 -7 -7 -7 -6 -6 -5 -4 -3 -2 -1 ------------ Run | Yrd Mat Min Exi Min Mat Fac Low Dat Pro Fac Fac Fac Res Res Acc Used RIF Installer . | . . . . . . . . . . . . . . . . Robots Hacked . | . . . . . . . . . . . . . . . . Non-combat . | . . . . . . . . . . . . . . . . Combat . | . . . . . . . . . . . . . . . . Robot Hacks Applied . | . . . . . . . . . . . . . . . . Relay Couplers Released . | . . . . . . . . . . . . . . . . Fabnet Peak Effective % . | . . . . . . . . . . . . . . . . Robots Rewired . | . . . . . . . . . . . . . . . . Allies Hacked . | . . . . . . . . . . . . . . . . Hacks Repelled . | . . . . . . . . . . . . . . . . Allies | -11 -10 -10 -10 -9 -8 -7 -7 -7 -6 -6 -5 -4 -3 -2 -1 -------- Run | Yrd Mat Min Exi Min Mat Fac Low Dat Pro Fac Fac Fac Res Res Acc Total Allies . | . . . . . . . . . . . . . . . . Largest Group . | . . . . . . . . . . . . . . . . Highest-Rated Group . | . . . . . . . . . . . . . . . . Highest-Rated Ally . | . . . . . . . . . . . . . . . . Total Orders . | . . . . . . . . . . . . . . . . Ally Attacks . | . . . . . . . . . . . . . . . . Total Damage . | . . . . . . . . . . . . . . . . Kills . | . . . . . . . . . . . . . . . . Allies Corrupted . | . . . . . . . . . . . . . . . . Allies Melted . | . . . . . . . . . . . . . . . . Intel | -11 -10 -10 -10 -9 -8 -7 -7 -7 -6 -6 -5 -4 -3 -2 -1 ------- Run | Yrd Mat Min Exi Min Mat Fac Low Dat Pro Fac Fac Fac Res Res Acc Active Infowar (turns) 2225 | 11 210 176 363 72 386 42 . . . . . . 28 465 472 Traps 320 | . . . . . 286 34 . . . . . . . . . Seismic 970 | 11 210 176 363 72 138 . . . . . . . . . . Cloaking 862 | . . . . . . 1 . . . . . . 28 464 369 Jamming 7 | . . . . . . 7 . . . . . . . . . ECM 262 | . . . . . . . . . . . . . 1 152 109 Robot Analysis Total 4 | . 2 . . . 2 . . . . . . . . . . Derelict Logs Recovered . | . . . . . . . . . . . . . . . . Drone Launches . | . . . . . . . . . . . . . . . . Drone Recoveries . | . . . . . . . . . . . . . . . . Exploration | -11 -10 -10 -10 -9 -8 -7 -7 -7 -6 -6 -5 -4 -3 -2 -1 ------------- Run | Yrd Mat Min Exi Min Mat Fac Low Dat Pro Fac Fac Fac Res Res Acc Turns Passed 4504 | 84 210 176 363 72 929 357 19 26 198 370 103 290 182 576 549 Spaces Moved 7273 | 38 123 111 227 38 429 882 63 87 565 540 187 921 463 1135 1464 Core 4 | 4 . . . . . . . . . . . . . . . Treads 961 | 34 123 111 227 38 428 . . . . . . . . . . Legs . | . . . . . . . . . . . . . . . . Wheels . | . . . . . . . . . . . . . . . . Hover . | . . . . . . . . . . . . . . . . Flight 6308 | . . . . . 1 882 63 87 565 540 187 921 463 1135 1464 Fastest Speed 22 | 50 160 160 160 160 30 28 30 30 27 29 27 22 22 33 26 Average Speed 45 | 151 160 160 160 160 160 29 30 30 29 29 27 23 27 33 26 Slowest Speed 163 | 160 160 160 160 160 163 30 30 30 102 29 29 27 33 33 30 Overloaded Moves . | . . . . . . . . . . . . . . . . Propulsion Burnouts . | . . . . . . . . . . . . . . . . Robots Hopped 2 | . . . . . . 2 . . . . . . . . . Potential Cave-ins 2 | . . . . . . . . . . . . . . . 2 Cave-ins Triggered . | . . . . . . . . . . . . . . . . Exploration Rate (%) 31 | 4 28 31 60 8 41 29 13 72 73 16 4 26 17 31 45 Regions Visited 15 Branch Regions 6 Pre-discovered Areas 2 | . . . 1 . . . . 1 . . . . . . . Known Exits Taken 2 | . . . . . . . . . . 1 1 . . . . Unknown Exits Taken 13 | 1 1 1 1 1 1 1 1 1 1 . . 1 1 1 . Scrap Searched 5 | . . . . 1 . . . . 4 . . . . . . Spaces Dug 119 | . . . . 5 . 4 . . 21 5 6 7 2 34 35 Terrain Destroyed 183 | . . . . 5 . 4 . . 66 5 6 14 2 34 47 Melee 82 | . . . . . . 4 . . . 5 6 7 2 34 24 Projectile . | . . . . . . . . . . . . . . . . AOE 101 | . . . . 5 . . . . 66 . . 7 . . 23 Terrain Rammed . | . . . . . . . . . . . . . . . . Walls Destroyed . | . . . . . . . . . . . . . . . . Machines Disabled . | . . . . . . . . . . . . . . . . Actions | -11 -10 -10 -10 -9 -8 -7 -7 -7 -6 -6 -5 -4 -3 -2 -1 --------- Run | Yrd Mat Min Exi Min Mat Fac Low Dat Pro Fac Fac Fac Res Res Acc Total 8039 | 55 128 110 227 45 565 942 62 86 582 730 219 964 512 1270 1542 Wait 306 | 1 . . . . 11 9 . . . 173 18 1 7 76 10 Move 7253 | 37 122 110 226 37 428 877 62 86 564 539 186 920 462 1134 1463 Hop 2 | . . . . . . 2 . . . . . . . . . Pick Up 30 | 6 1 . 1 4 4 1 . . . 1 . 1 4 4 3 Fast Attach 52 | 7 . . . . 14 9 . . 1 3 2 5 8 2 1 Attach 25 | . . . . . 5 4 . . 2 1 . 2 4 2 5 Detach 16 | . . . . . 2 5 . . 1 1 1 1 4 . 1 Swap 28 | 1 1 . . 2 9 2 . . 4 . . 3 2 3 1 Drop 64 | . . . . . 30 9 . . 1 . 1 2 15 5 1 Fire 79 | 3 4 . . 2 59 . . . 8 . . 1 . . 2 Melee 169 | . . . . . . 24 . . 1 12 11 16 6 44 55 Ram . | . . . . . . . . . . . . . . . . Kick . | . . . . . . . . . . . . . . . . Crush 3 | . . . . . 3 . . . . . . . . . . Escape Stasis 12 | . . . . . . . . . . . . 12 . . . Rewire . | . . . . . . . . . . . . . . . . Trap . | . . . . . . . . . . . . . . . . Miscellaneous . | . . . . . . . . . . . . . . . . Route ------- -11/Scrapyard -10/Materials -10/Mines (discovered 2 exits: [*Mat] / *Exi) -10/Exiles (discovered 2 exits: [*Min x2]) -9/Mines -8/Materials -7/Factory (discovered 2 exits: *Fac / [*Low]) -7/Lower Caves -7/Data Miner -6/Proximity Caves -6/Factory (discovered 4 exits: *Fac x4) -5/Factory (discovered 5 exits: *Fac x4 / [*Ext]) -4/Factory -3/Research -2/Research -1/Access To Epsilon Eridani History --------- Turn | Location | Event 17 | -11/Scrapyard | Discovered new exit (range 15) 85 | -11/Scrapyard | Entered Materials 240 | -10/Materials | Discovered new exit (range 16) 295 | -10/Materials | Entered Mines 306 | -10/Mines | Build established: Mutant 439 | -10/Mines | Met a Derelict bent on vengeance 454 | -10/Mines | Discovered new exit (range 8) 465 | -10/Mines | Deemed a non-threat by the Exiles lab entrance 465 | -10/Mines | Discovered new exit (range 5) 471 | -10/Mines | Entered Exiles 492 | -10/Exiles | Discovered new exit (range 15) 529 | -10/Exiles | Met 8R-AWN 556 | -10/Exiles | Met EX-HEX 615 | -10/Exiles | Met EX-BIN 635 | -10/Exiles | Aligned with FarCom system 636 | -10/Exiles | Given EX-Vault access code 673 | -10/Exiles | Opened EX-Vault 684 | -10/Exiles | Found Cloak of Protection 719 | -10/Exiles | Warned to stay clear of 0b10 Research branches 739 | -10/Exiles | Exiles lab attacked by MAIN.C 770 | -10/Exiles | Learned location of Zion (-6) 820 | -10/Exiles | Discovered new exit (range 10) 834 | -10/Exiles | Left Exiles lab with Cloak of Protection 834 | -10/Exiles | Entered Mines 885 | -9/Mines | Discovered new exit (range 12) 899 | -9/Mines | Assembled infested the area 906 | -9/Mines | Entered Materials 906 | -8/Materials | Evolved 4 slots: Propulsion x1, Utility x3 1577 | -8/Materials | Build established: Scavenger-Mutant 1818 | -8/Materials | Discovered new exit (range 5) 1835 | -8/Materials | Entered Factory 1835 | -7/Factory | Evolved 2 slots: Propulsion x2 1872 | -7/Factory | Discovered new exit (range 11) 2122 | -7/Factory | Build established: Scavenger-Sprinter 2172 | -7/Factory | Discovered new exit (range 15) 2192 | -7/Factory | Entered Lower Caves 2209 | -7/Lower Caves | A Derelict revealed a hidden shortcut to meet someone special 2211 | -7/Lower Caves | Entered Data Miner 2211 | -7/Data Miner | Discovered new exit (range 6) 2217 | -7/Data Miner | Met Data Miner 2225 | -7/Data Miner | Learned location of Section 7 (-2) 2225 | -7/Data Miner | Acquired the access code to Warlord's prototype stash 2231 | -7/Data Miner | Received God Mode back door access code from Data Miner 2237 | -7/Data Miner | Entered Proximity Caves 2431 | -6/Proximity Caves | Lost 3 parts (1p1n1u) 2432 | -6/Proximity Caves | Discovered new exit (range 10) 2435 | -6/Proximity Caves | Entered Factory 2435 | -6/Factory | Evolved 2 slots: Propulsion x1, Utility x1 2486 | -6/Factory | Identified exit to Factory 2654 | -6/Factory | Build established: Hacker-Sprinter 2805 | -6/Factory | Entered another Factory area 2805 | -5/Factory | Evolved 2 slots: Power x1, Propulsion x1 2827 | -5/Factory | Repaired Broken Flight Unit 2839 | -5/Factory | Discovered new exit (range 11) 2843 | -5/Factory | Identified exit to Factory 2846 | -5/Factory | Discovered new exit (range 16) 2908 | -5/Factory | Entered another Factory area 2908 | -4/Factory | Evolved 2 slots: Utility x2 3100 | -4/Factory | Fabricated Cld. Cesium-ion Thruster? 3182 | -4/Factory | Discovered new exit (range 15) 3198 | -4/Factory | Entered Research 3198 | -3/Research | Evolved 2 slots: Utility x2 3362 | -3/Research | Discovered new exit (range 15) 3380 | -3/Research | Entered another Research area 3380 | -2/Research | Evolved 2 slots: Propulsion x1, Utility x1 3636 | -2/Research | Spotted B-90 Cyclops 3952 | -2/Research | Discovered new exit (range 5) 3956 | -2/Research | Entered Access 3956 | -1/Access | Evolved 2 slots: Propulsion x2 4061 | -1/Access | Spotted B-99 Colossus 4309 | -1/Access | Spotted B-99 Colossus 4356 | -1/Access | Lost 3 parts (3u) 4430 | -1/Access | Identified exit to Surface 4505 | *** | Escaped! Last Messages --------------- 04425_ A-15 Conveyor Med. Treads severed. 04427_ System corrupted: Matter fused (-6). 04430_ Connecting with Terminal... >>Access(Main) Found 1 level access point to Surface: (167,111) Map updated. 04452_ Connecting with Garrison Access... >>Seal Access door sealed. 04460_ Penetrated by Slug. 04460_ Q-thruster destroyed. 04463_ Slug penetrates Wall. 04484_ U-05 Engineer builds a Wall. 04485_ Slug penetrates Wall. 04502_ Connecting with Terminal... >>Open(Door) Sealed Barrier opened. 04503_ The Access Shell folds into the floor. [Achievement: Epsilon Run] Map ----- +----------------------------------------------------+ | #?###############+#+### #?????????????????????? | | ###" # #?????????????????????? | | # # #?????????????????????? | | ] # " # #?????????????????????? | | # """ !! # #?????????????????????? | | # """ !! # #?????????????????????? | | # " ! # +?????????????????????? | | # # #?????????????????????? | | # #? #?????????????????????? | | ####################? #?????????????????????? | | #???????????????????? ????????????????????????? | | ####?????????????????????????????????????????????? | | #??????????????????????????????????????????????? | | #??????????????????????????????????????????????? | | ""#??????????????????BB????BB????????????????????? | | ""#??????????????????BB????BB????????????????????? | | R"#??????????????????????????????????????????????? | | ""#??????????????????????????????????????????????? | | " #??????????????????????????????????????????????? | | #????????????????????????????????######????????? | | #????????????????#""""""""""#????# ###+###### | | ###????????????????# #????# | | ???????????????????# #????# | | ???????????????????# #????# ########## | | ???????????????????# "" #????## ##????????? | | ???????????????????# "@ #?????# #?????????? | | ???????????????????# #?????# #?????????? | | ???????????????????# #?????# #?????????? | | ???????????????????# #?????# #?????????? | | ??????????????????## ##????# #?????????? | | ??????????????????# #????# #?????????? | | ??????????????????##"" ##????# #?????????? | | ???????????????????#"" #?????# #?????????? | | ???????????????????#"" #?????# #?????????? | | ???????????????????#T #?????# +?????????? | | ???????????????????#"" #?????# #?????????? | | ???????????????????#"" #?????# #?????????? | | ???????????????????#"" ####### ######????? | | ?????????????? A k | | ?????????????? k " | | ?????????????#+####################+########## | | ?????????????????????????????????????????????????# | | ?????????????????????????????????????????????????? | | ?????????????????????????????????????????????????? | | ?????????????????????????????????????????????????? | | ?????????????????????????????????????????????????? | | ?????????????????????????????????????????????????? | | ?????????????????????????????????????????????????? | | ?????????????????????????????????????????????????? | | ?????????????????????????????????????????????????? | +----------------------------------------------------+ Best States ------------- Heat Dissipation 66 Coolant Potential 100 Energy Generation 45 Energy Capacity 360 Matter Stores 300 Matter Capacity 300 Sight Range 16 Terrain Scan Density 10 ECM Strength 2 Jamming Range 12 Cloak Strength 5 Armor Coverage 300 Propulsion Shielding 66 Evasion (%) 65 Recoil Reduction 3 Offensive Hacking 52 Defensive Hacking 20 Item Schematics ----------------- Combat Drone Bay | -7/Data Miner | Free Lgt. Regenerative Plating | -7/Data Miner | Free Cld. Cesium-ion Thruster | -7/Data Miner | Free Thermal Defense Suite | -7/Data Miner | Free Imp. Heavy Laser | -7/Data Miner | Free Linear Gravjet | -7/Data Miner | Free Imp. Dynamic Insulation System | -7/Data Miner | Free Variable Charge Gun | -7/Data Miner | Free Imp. Linear Gravjet | -7/Data Miner | Free Myomer Leg | -7/Data Miner | Free Imp. VTOL Module | -4/Factory | Scanalyzed Robot Schematics ------------------ L-41 Fighter | -7/Data Miner | Free G-50 Soldier | -7/Data Miner | Free M-14 Sweeper | -7/Data Miner | Free E-15 Imp | -7/Data Miner | Free R-10 Processor | -7/Data Miner | Free Fabricated ------------ Cld. Cesium-ion Thruster | x1 | -4/Factory Repaired ---------- Flight Unit | 85% | -5/Factory | Broken Alien Tech Used ----------------- None Achievements -------------- Dynamic Key Epsilon Run GoHome() The Oracle Challenges ------------ None Game ------ Seed AbsorptionSubdwellerAirjet Manual? 0 Play Time 01:32:52 Cumulative 20.5 hours Start 2025.10.10 @ 17:20:26 End 2025.10.10 @ 19:16:04 Sessions 1 Manual Loads 0 Difficulty Rogue Special Mode None Game No. 35 Rogue 35 Adventurer 0 Explorer 0 Win Type 0 Total 1 Types 1/0/0/0/0/0/0/0/0/0 Lore% 22 Gallery% 30 Achievement% 31 Wizard Run 0 Options --------- Layout 1 ASCII 0 Keyboard 0 Movement Numpad Keybinds 0 Fullscreen 2 Font 24/Smallcaps Map View 50x35 Zoom Use 0% Tactical HUD 1 Map Filters NONE Filters NONE Steam 1 RUN: 4af9d74e-eaa3-40f5-952f-33f500f6355f